Cogmind - Beta 11 *** ADVENTURER MODE // 2022.03.18 @ 20:02:55 Player: Ciaphas Result: Destroyed by G-47 Trooper with Particle Gun Performance ------------- Evolutions (2) 1000 Regions Visited (4) 800 Robots Destroyed (62) 310 Value Destroyed (2045) 2045 Prototype IDs (3) 60 Alien Tech Used (0) 0 Bonus (225) 225 TOTAL SCORE: 4440 Bonus ------- High Alert Combat Kills 225 Cogmind --------- Core Integrity 0/550 Matter 235/300 Energy 100/100 System Corruption 2% Temperature Cool (15) Movement Flying (280) Ox3 Location -8/Materials Parts ------- > --- POWER (1) -------- (None) > --- PROPULSION (4) --- Flight Unit > --- UTILITY (4) ------ Medium Storage Unit Structural Scanner Advanced Visual Processing Unit > --- WEAPON (2) ------- Great Maul > --- INVENTORY (10) --- Light Nuclear Core Light Nuclear Core Aluminum Leg Airjet Hacking Suite Beam Rifle Improved Datajack Peak State ------------ > --- POWER ------------ Light Nuclear Core > --- PROPULSION ------- Aluminum Leg Aluminum Leg Aluminum Leg Airjet > --- UTILITY ---------- Medium Storage Unit Structural Scanner Advanced Visual Processing Unit ECM Suite > --- WEAPON ----------- Improved Datajack Great Maul > --- INVENTORY -------- Light Nuclear Core Light Nuclear Core Light Nuclear Core Aluminum Leg Aluminum Leg Aluminum Leg Flight Unit Hacking Suite Beam Rifle Mini Grenade Launcher [Rating: 23] Favorites ----------- Power Light Nuclear Core Engine Ion Engine Power Core Light Nuclear Core Propulsion Aluminum Leg Leg Aluminum Leg Hover Unit Airjet Flight Unit Flight Unit Utility Medium Storage Unit Device Structural Scanner Storage Medium Storage Unit Processor Advanced Visual Processing Unit Weapon Particle Gun Energy Gun Particle Gun Ballistic Gun Light Assault Rifle Launcher Mini Grenade Launcher Impact Weapon Great Maul Special Melee Weapon Improved Datajack Build | -11 -10 -10 -9 -8 ------- Run | Scr Mat Min Mat Mat Slots Evolved 4 | . . . 2 2 Power . | . . . . . Propulsion 2 | . . . . 2 Utility 2 | . . . 2 . Weapon . | . . . . . Parts Attached 54 | 6 3 3 7 35 Power 9 | 1 . 1 1 6 Engine 2 | 1 . . 1 . Core 7 | . . 1 . 6 Reactor . | . . . . . Propulsion 23 | 2 . 1 2 18 Treads . | . . . . . Leg 21 | 2 . 1 2 16 Wheel . | . . . . . Hover 1 | . . . . 1 Flight 1 | . . . . 1 Utility 9 | 1 3 . 2 3 Device 4 | . 2 . . 2 Storage 2 | 1 1 . . . Processor 3 | . . . 2 1 Hackware . | . . . . . Protection . | . . . . . Artifact . | . . . . . Weapon 13 | 2 . 1 2 8 Energy Gun 7 | . . 1 2 4 Energy Cannon . | . . . . . Ballistic Gun 2 | 2 . . . . Ballistic Cannon . | . . . . . Launcher 2 | . . . . 2 Special Weapon . | . . . . . Impact Weapon 1 | . . . . 1 Slashing Weapon . | . . . . . Piercing Weapon . | . . . . . Special Melee Weapon 1 | . . . . 1 Unidentified Prototypes 3 | . . . 2 1 Parts Lost 20 | . . . 1 19 Power 3 | . . . 1 2 Propulsion 11 | . . . . 11 Utility 2 | . . . . 2 Weapon 4 | . . . . 4 Highest Loss Streak 9 | . . . 1 9 To Critical Strikes . | . . . . . Average Slot Usage (%) 93 | . 96 100 92 90 Engine 2 | . 14 3 . . Core 8 | . . 10 10 8 Leg 27 | . 28 28 22 29 Hover 1 | . . . . 2 Device 13 | . 11 14 11 15 Storage 10 | . 14 14 11 9 Processor 9 | . . . 15 9 Energy Gun 10 | . . 1 21 8 Ballistic Gun 5 | . 28 26 . . Launcher 1 | . . . . 2 Impact Weapon 2 | . . . . 3 Naked Turns . | . . . . . Heaviest Build 25 | 13 19 20 25 25 Greatest Support 45 | 20 20 20 20 45 Greatest Overweight (x) 4 | 2 . . 1 4 Average Overweight (x) . | . . . . . Largest Inventory Capacity 10 | 8 10 10 10 10 Average Capacity 9 | 6 9 10 10 10 Most Carried 10 | 1 1 5 9 10 Average Carried 6 | . . 3 6 7 Final Capacity 10 | 8 10 10 10 10 Final Carried 7 | . 1 5 6 7 Class Distribution -------------------- 58% | Scavenger-Mutant 35% | Mutant 5% | Infiltrator-Mutant Dominant Class ---------------- Mutant | -10/Materials Mutant | -10/Mines Scavenger-Mutant | -9/Materials Scavenger-Mutant | -8/Materials Resources | -11 -10 -10 -9 -8 ----------- Run | Scr Mat Min Mat Mat Matter Collected 818 | 197 41 170 70 340 Remotely . | . . . . . Salvage Created 2457 | . 41 186 462 1768 Parts 127 | . 6 11 27 83 Haulers Intercepted 3 | . . . 1 2 Recyclers Shooed . | . . . . . Parts Field Recycled . | . . . . . Retrieved Matter . | . . . . . Parts Self-Destructed . | . . . . . Prevented . | . . . . . Kills | -11 -10 -10 -9 -8 ------- Run | Scr Mat Min Mat Mat Combat Hostiles Destroyed 52 | . 3 4 7 38 Melee 6 | . . . . 6 Guns 33 | . 3 4 7 19 AOE 5 | . . . . 5 Classes Destroyed 10 | . 1 1 3 5 Worker 2 | . . . . 2 Builder 1 | . . . . 1 Hauler 3 | . . . 1 2 Mechanic 1 | . . . . 1 Operator 1 | . . . . 1 Watcher 5 | . . . 1 4 Swarmer 10 | . 3 . . 7 Grunt 30 | . . 4 2 24 Duelist 1 | . . . . 1 Sentry 11 | . . . 5 6 Best Kill Streak 6 | . 3 2 3 6 Combat Bots Only 5 | . 3 2 2 5 Max Kills in Single Turn 3 | . 1 1 1 3 Gunslinging . | . . . . . Exploded 2 | . . . . 2 Melee 1 | . . . . 1 Uniques/NPCs Destroyed . | . . . . . Combat | -11 -10 -10 -9 -8 -------- Run | Scr Mat Min Mat Mat Damage Taken 2844 | . 35 155 336 2318 Core 698 | . 4 41 102 551 Absorbed by Shields . | . . . . . Regen/Repaired (Parts) 55 | . . . . 55 Core Remaining (%) 85 | 100 . 82 74 . Volleys Fired 138 | . 4 18 24 92 Largest 2 | . 2 2 2 2 Hottest 126 | . 40 40 110 126 Shots Fired 209 | . 8 36 44 121 Gun 195 | . 8 36 44 107 Cannon . | . . . . . Launcher 14 | . . . . 14 Special . | . . . . . Kinetic 44 | . 8 36 . . Thermal 122 | . . . 27 95 Explosive 14 | . . . . 14 Electromagnetic 29 | . . . 17 12 Robot Hit Streak 52 | . 4 20 33 52 Robot Miss Streak 3 | . 1 3 2 2 Penetration Max . | . . . . . Secondary Targets 3 | . 1 . 1 1 Max Gunslinging Chain 1 | . 1 . 1 1 Shots Hit Robots 200 | . 5 30 35 130 Core Hits 107 | . 4 12 16 75 Critical Kills 2 | . . . . 2 Critical Parts Destroyed 7 | . . . . 7 Critical Strikes 13 | . . . . 13 Burn 4 | . . . . 4 Smash 9 | . . . . 9 Melee Attacks 38 | . . . . 38 Impact 34 | . . . . 34 Slashing . | . . . . . Piercing . | . . . . . Sneak Attacks 4 | . . . . 4 Combat Hostiles . | . . . . . Follow-up Attacks . | . . . . . Damage Inflicted 4710 | . 57 313 556 3784 Guns 2320 | . 57 313 556 1394 Cannons . | . . . . . Explosions 939 | . . . . 939 Melee 1451 | . . . . 1451 Ramming . | . . . . . Kinetic 370 | . 57 313 . . Thermal 1447 | . . . 272 1175 Explosive 939 | . . . . 939 Electromagnetic 503 | . . . 284 219 Impact 1451 | . . . . 1451 Slashing . | . . . . . Piercing . | . . . . . Highest Corruption 2 | . . . . 2 Average Corruption 1 | . . . . 1 Corruption Purged . | . . . . . Corruption Blocked . | . . . . . Effects 4 | . . . . 4 Message Errors 1 | . . . . 1 Data Loss (major) 1 | . . . . 1 Misfires 1 | . . . . 1 Weapon Failures 1 | . . . . 1 Overload Shots . | . . . . . Overflow Damage 421 | . . . . 421 Projectiles . | . . . . . Explosions 27 | . . . . 27 Melee 394 | . . . . 394 Knockbacks 7 | . . . . 7 Impact 7 | . . . . 7 Kinetic . | . . . . . Secondary . | . . . . . Self-Inflicted Damage 68 | . . . . 68 Shots 3 | . . . . 3 Rammed . | . . . . . Targets Rammed . | . . . . . Kicked . | . . . . . Crushed . | . . . . . Highest Temperature 374 | . . 20 216 374 Average Temperature 85 | . . 7 73 100 Received Heat Transfer 1866 | . . 117 174 1575 Effects 5 | . . . . 5 Energy Bleed 1 | . . . . 1 Interference 4 | . . . . 4 Siege Activations . | . . . . . Robots Corrupted . | . . . . . Combat Hostiles . | . . . . . Parts Fried 14 | . . . 1 13 Impact Corruptions 18 | . . . . 18 Robots Melted 1 | . . . . 1 Combat Hostiles . | . . . . . Parts Melted 4 | . . . 1 3 Heat Transferred 3528 | . . . 654 2874 Parts Sabotaged . | . . . . . Parts Stolen . | . . . . . Parts Stripped . | . . . . . Power Chain Reactions 1 | . . . . 1 Missiles Intercepted . | . . . . . Alert | -11 -10 -10 -9 -8 ------- Run | Scr Mat Min Mat Mat Peak Influence 809 | . 93 145 228 809 Initial 74 | . . 30 47 74 Average 245 | . 44 93 150 366 Maximum Alert Level 3 | . . . 1 3 Low Security (%) 55 | 100 100 100 89 20 Level 1 24 | . . . 10 40 Level 2 14 | . . . . 28 Level 3 5 | . . . . 10 Level 4 . | . . . . . Level 5 . | . . . . . High Security . | . . . . . Max Security . | . . . . . Squads Dispatched 12 | . . . 2 10 Investigation 4 | . . . 1 3 Extermination . | . . . . . Reinforcement 6 | . . . 1 5 Assault 1 | . . . . 1 Garrison 1 | . . . . 1 Intercept . | . . . . . Searches Triggered . | . . . . . Construction Impeded 1 | . . . . 1 Haulers Reinforced . | . . . . . Active Scanning Responses . | . . . . . Cargo Convoy Interrupts . | . . . . . Stealth | -11 -10 -10 -9 -8 --------- Run | Scr Mat Min Mat Mat Distress Signals 3 | . . . 1 2 Communications Jammed . | . . . . . Distress Signals . | . . . . . Times Spotted 93 | . 4 4 11 74 Peak Tracking Total 10 | . 3 2 3 10 Tactical Retreats 3 | . . . . 3 Traps | -11 -10 -10 -9 -8 ------- Run | Scr Mat Min Mat Mat Traps Triggered 6 | . . . . 6 Indirectly . | . . . . . Trap Hack Attempts . | . . . . . Triggered . | . . . . . Disarmed . | . . . . . Reprogrammed . | . . . . . Reused . | . . . . . Traps Extracted . | . . . . . Installed . | . . . . . Triggered . | . . . . . Machines | -11 -10 -10 -9 -8 ---------- Run | Scr Mat Min Mat Mat Machines Disabled 1 | . . . . 1 Max in Single Turn 1 | . . . . 1 Machines Sabotaged . | . . . . . Garrisons Compromised . | . . . . . Overloaded Fab Kills . | . . . . . Hacking | -11 -10 -10 -9 -8 --------- Run | Scr Mat Min Mat Mat Machines Accessed 8 | . 1 . 4 3 Terminals 6 | . 1 . 3 2 Fabricators . | . . . . . Repair Stations 1 | . . . . 1 Recycling Units . | . . . . . Scanalyzers 1 | . . . 1 . Garrison Access . | . . . . . Total Hacks 24 | . 6 . 9 9 Successful 16 | . 5 . 4 7 Failed 7 | . . . 5 2 Catastrophic . | . . . . . Database Lockouts 1 | . 1 . . . Manual 8 | . 1 . 2 5 Terminals 19 | . 6 . 7 6 Fabricators . | . . . . . Repair Stations 3 | . . . . 3 Recycling Units . | . . . . . Scanalyzers 2 | . . . 2 . Garrison Access . | . . . . . Terminal Hacks 14 | . 5 . 4 5 Record 8 | . 4 . 1 3 Robot Analysis 1 | . . . 1 . Alert Level 1 | . 1 . . . Hauler Manifests 4 | . . . 2 2 Fabricator Hacks . | . . . . . Repair Station Hacks 2 | . . . . 2 Scan Component 1 | . . . . 1 Repair 1 | . . . . 1 Recycling Unit Hacks . | . . . . . Scanalyzer . | . . . . . Garrison Access Hacks . | . . . . . Unauthorized Hacks . | . . . . . Terminals . | . . . . . Fabricators . | . . . . . Repair Stations . | . . . . . Recycling Units . | . . . . . Scanalyzers . | . . . . . Garrison Access . | . . . . . Data Cores Recovered . | . . . . . Used . | . . . . . Hacking Detections 7 | . 1 . 4 2 Full Trace Events 2 | . . . 1 1 Feedback Events . | . . . . . Feedback Blocked . | . . . . . Robot Schematics Acquired . | . . . . . Robots Built . | . . . . . Authchips . | . . . . . Time . | . . . . . Total Robot Build Rating . | . . . . . Part Schematics Acquired . | . . . . . Parts Built . | . . . . . Authchips . | . . . . . Time . | . . . . . Total Part Build Rating . | . . . . . Parts Repaired 1 | . . . . 1 Time 51 | . . . . 51 Parts Recycled . | . . . . . Recycled Matter . | . . . . . Retrieved Matter . | . . . . . Retrieved Components . | . . . . . Parts Scanalyzed . | . . . . . Part Schematics Acquired . | . . . . . Parts Damaged . | . . . . . Bothacking | -11 -10 -10 -9 -8 ------------ Run | Scr Mat Min Mat Mat Used RIF Installer . | . . . . . Robots Hacked 4 | . . . . 4 Non-combat 2 | . . . . 2 Combat 2 | . . . . 2 Robot Hacks Applied 4 | . . . . 4 parse_system 4 | . . . . 4 Relay Couplers Released . | . . . . . Fabnet Peak Effective % . | . . . . . Robots Rewired . | . . . . . Allies Hacked . | . . . . . Hacks Repelled . | . . . . . Allies | -11 -10 -10 -9 -8 -------- Run | Scr Mat Min Mat Mat Total Allies . | . . . . . Largest Group . | . . . . . Highest-Rated Group . | . . . . . Highest-Rated Ally . | . . . . . Total Orders . | . . . . . Ally Attacks . | . . . . . Total Damage . | . . . . . Kills . | . . . . . Allies Corrupted . | . . . . . Allies Melted . | . . . . . Intel | -11 -10 -10 -9 -8 ------- Run | Scr Mat Min Mat Mat Robot Analysis Total 1 | . . . 1 . Derelict Logs Recovered 1 | . . 1 . . Drone Launches . | . . . . . Drone Recoveries . | . . . . . Exploration | -11 -10 -10 -9 -8 ------------- Run | Scr Mat Min Mat Mat Turns Passed 2371 | 56 184 298 575 1258 Spaces Moved 1305 | 45 139 201 273 647 Core 12 | 12 . . . . Treads . | . . . . . Legs 1283 | 33 139 201 273 637 Wheels . | . . . . . Hover 7 | . . . . 7 Flight 3 | . . . . 3 Fastest Speed 50 | 50 120 120 120 120 Average Speed 132 | 104 120 120 167 126 Slowest Speed 360 | 150 120 120 190 360 Overloaded Moves . | . . . . . Propulsion Burnouts . | . . . . . Robots Hopped . | . . . . . Cave-ins Triggered . | . . . . . Exploration Rate (%) 34 | 3 29 45 27 69 Regions Visited 4 Branch Regions 1 Pre-discovered Areas 1 | . . 1 . . Known Exits Taken . | . . . . . Unknown Exits Taken 4 | 1 1 1 1 . Scrap Searched . | . . . . . Spaces Dug . | . . . . . Terrain Destroyed 77 | . . . . 77 Melee . | . . . . . Projectile . | . . . . . AOE 77 | . . . . 77 Terrain Rammed . | . . . . . Walls Destroyed . | . . . . . Machines Disabled . | . . . . . Actions | -11 -10 -10 -9 -8 --------- Run | Scr Mat Min Mat Mat Total 1662 | 51 148 224 348 891 Wait 98 | . . . 35 63 Move 1301 | 44 138 200 272 647 Hop . | . . . . . Pick Up 15 | 1 1 3 4 6 Fast Attach 24 | 5 3 . 3 13 Attach 10 | 1 . . 1 8 Detach 2 | . . . 1 1 Swap 20 | . . 3 3 14 Drop 16 | . 2 . 5 9 Fire 138 | . 4 18 24 92 Melee 38 | . . . . 38 Ram . | . . . . . Kick . | . . . . . Crush . | . . . . . Escape Stasis . | . . . . . Rewire . | . . . . . Trap . | . . . . . Miscellaneous . | . . . . . Route ------- -11/Scrapyard -10/Materials -10/Mines -9/Materials -8/Materials (discovered 1 exit: [*Fac]) History --------- Turn | Location | Event 2 | -11/Scrapyard | Discovered new exit (range 16) 57 | -11/Scrapyard | Entered Materials 133 | -10/Materials | Central database locked down 143 | -10/Materials | Discovered new exit (range 16) 241 | -10/Materials | Entered Mines 253 | -10/Mines | Learned Materials trap positions 309 | -10/Mines | Build established: Mutant 506 | -10/Mines | Discovered new exit (range 7) 508 | -10/Mines | Learned location of Storage (-8) 539 | -10/Mines | Entered Materials 539 | -9/Materials | Evolved 2 slots: Utility x2 540 | -9/Materials | Loaded intel: 16 trap records 1001 | -9/Materials | Build established: Scavenger-Mutant 1073 | -9/Materials | Discovered new exit (range 15) 1114 | -9/Materials | Entered another Materials area 1114 | -8/Materials | Evolved 2 slots: Propulsion x2 1301 | -8/Materials | Repaired Imp. EM Shotgun? 1545 | -8/Materials | Lost 6 parts (4n1u1w) 1891 | -8/Materials | Core integrity fell below 50% 2011 | -8/Materials | Discovered new exit (range 13) 2314 | -8/Materials | First assault squad dispatched 2329 | -8/Materials | Garrison activated, responded to threat 2357 | -8/Materials | Core integrity fell below 20% 2372 | -8/Materials | Destroyed by G-47 Trooper with Particle Gun Last Messages --------------- 02351_ ECM Suite destroyed. 02352_ K-01 Serf collects debris. 02353_ K-01 Serf destroyed. 02354_ K-01 Serf collects debris. 02355_ Critical hit (Burn: +37). 02357_ K-01 Serf collects debris. 02358_ Carbon-fiber Leg destroyed. 02360_ The unstable cave ceiling collapses. 02360_ K-01 Serf collects debris. 02361_ The unstable cave ceiling collapses. 02361_ Mni. Grenade Launcher destroyed. 02364_ Lgt. Nuclear Core destroyed. 02364_ K-01 Serf collects debris. 02367_ The unstable cave ceiling collapses. 02367_ K-01 Serf collects debris. 02370_ U-05 Engineer lays Concrete. 02370_ K-01 Serf collects debris. 02370_ U-05 Engineer lays Concrete. 02371_ K-01 Serf collects debris. 02371_ Critical hit (Burn: +37). Map ----- +----------------------------------------------------+ | ##????????????? ]?????????????? | | "" ##????????????? ?????????????? | | "" ##????????????? ?????????????? | | "" ##????????????? ?????????????? | | % ##????????????? ?????????????? | | ########????????????? ##???????????? | | ########????????????? ##???????????? | | ???????????????????? ##???????????? | | ????????????????????## ##???????????? | | ????????????????????## ##???????????? | | ???????????????####?## ##???????????? | | ##???????????######### ##???????????? | | ##??????????##### #### #########????? | | ############### #########????? | | ??############ # ! ##????? | | ??## # # ##????? | | ??## # ! + ##????? | | #?## ## """ ##????? | | #?## ## """ ##????? | | #?## ## """ !######? | | #?## # %! ########+######? | | #?## u =%%= ### ! ! ##? | | #?## # u %g ### ##? | | ########+#####uk = g ## ##? | | ####### l# * """ ##? | | # % k = g@ """ ##? | | + o%% gg# """ ##? | | # %###### # = "T" """ ##? | | * ] # !!#### #### = ##? | | # # / ###########? | | """ # # g ###########? | | """ # # # Tg ##????? | | """ %+! # # = *##????? | | """ # # # ! ##????? | | """ # + # ##????? | | # !!# ##+#########????? | | #!%!# ##%### ????? | | #######*!=############ ##???????????? | | ###### ########### ???????????? | | ??? ???????????? | | ! T ???? ???????????? | | ? ?????????? | | ###### #####??? #+# ## ?????????? | | ################?## ## ?????????? | | #############????## ##??????????? | | ##??????##! ##??????????? | | [ ##??????## "" ##??????????? | | ##??????## "G ##??????????? | | """ ##??????## "" ##??????????? | | """"" ##??????##! ##??????????? | +----------------------------------------------------+ Best States ------------- Heat Dissipation 35 Energy Generation 14 Energy Capacity 280 Matter Stores 300 Matter Capacity 300 Sight Range 20 Terrain Scan Density 10 ECM Strength 1 Resistance: KI 20 Resistance: TH 20 Resistance: EX 20 Resistance: EM 20 Resistance: I 20 Resistance: S 20 Resistance: P 20 Evasion (%) 59 Salvage Targeting 1 Offensive Hacking 10 Item Schematics ----------------- None Robot Schematics ------------------ None Fabricated ------------ Nothing Alien Tech Used ----------------- None Achievements -------------- It's Just You Maybe Next Time I'll Detach My Launcher Party Time Significant Disruption Challenges ------------ None Game ------ Seed DroneBarrageDoomcannon Manual? 0 Play Time 00:56:01 Cumulative 4.2 hours Start 2022.03.18 @ 19:05:00 End 2022.03.18 @ 20:02:55 Sessions 1 Manual Loads 0 Difficulty Adventurer Special Mode None Game No. 6 Rogue 4 Adventurer 2 Explorer 0 Win Type - Total 0 Types 0/0/0/0/0/0/0/0/0 Lore% 3 Gallery% 8 Achievement% 7 Wizard Run 0 Options --------- ASCII 0 Keyboard 0 Movement Mouse Keybinds 0 Fullscreen 1 Font 24/Smallcaps Map View 76x50 Tactical HUD 1 Map Filters NONE Filters NONE Steam 1 RUN: f692df1b-e31d-4a69-aa04-2a59392976d4